Cogmind - Beta 14 *** ADVENTURER MODE // 2024.09.02 @ 11:32:09 Player: LegoMDS Result: Core destroyed Performance ------------- Evolutions (6) 3000 Regions Visited (15) 3000 Robots Destroyed (176) 880 Value Destroyed (6848) 6848 Prototype IDs (36) 720 Alien Tech Used (0) 0 Bonus (648) 648 TOTAL SCORE: 15096 Bonus ------- High Alert Combat Kills 152 Follower Combat Kills 202 Aligned with FarCom 300 Friendly Fire -6 Cogmind --------- Core Integrity 0/1150 Matter 290/300 Energy 20/100 System Corruption 11% Temperature Cool (0) Movement Rolling (80) Location -4/Factory Parts ------- > --- POWER (2) -------- (None) > --- PROPULSION (4) --- Wheel > --- UTILITY (7) ------ Advanced Heat Sink Advanced Targeting Computer Improved Target Analyzer Quantum Capacitor > --- WEAPON (6) ------- (None) > --- INVENTORY (5) ---- Faulty Experimental Cooling System Hacking Suite Improved Recalibrator Peak State ------------ > --- POWER ------------ Light Angular Momentum Engine Micro Fission Core > --- PROPULSION ------- Armored Medium Treads Heavy Treads > --- UTILITY ---------- Advanced Cooling System Structural Scanner Advanced Targeting Computer Improved Target Analyzer Recoil Nullifier Phase Shifter Improved Hacking Suite > --- WEAPON ----------- Gauss Rifle AWS/Autocannon > --- INVENTORY -------- Point Defense System Hacking Suite Improved Recalibrator Variable Charge Gun Improved Plasma Cutter [Rating: 96] Favorites ----------- Power Reinforced Deuterium Engine Engine Reinforced Deuterium Engine Power Core Light Nuclear Core Propulsion Flexi-carbon Leg Treads Heavy Treads Leg Flexi-carbon Leg Wheel Wheel Flight Unit Improved VTOL Module Utility Structural Scanner Device Structural Scanner Storage Small Storage Unit Processor Advanced Targeting Computer Hackware Improved Hacking Suite Protection Improved Medium Armor Plating Weapon Power Sword Energy Gun Variable Charge Gun Energy Cannon Advanced Plasma Cannon Ballistic Gun Gauss Rifle Ballistic Cannon Heavy Flak Cannon Launcher Scatter Rocket Array Special Weapon Plasma Cutter Impact Weapon Heavy Mace Slashing Weapon Power Sword Special Melee Weapon Datajack Build | -11 -10 -9 -9 -9 -8 -8 -8 -8 -6 -5 -5 -5 -5 -5 -4 ------- Run | Yrd Mat Mat Min Exi Min Mat Sto Rec Fac Fac Was Fac Upp Upp Fac Slots Evolved 12 | . . 2 . . . 2 . . 4 2 . . . . 2 Power 1 | . . . . . . . . . 1 . . . . . . Propulsion 2 | . . 1 . . . . . . 1 . . . . . . Utility 5 | . . 1 . . . 1 . . 1 2 . . . . . Weapon 4 | . . . . . . 1 . . 1 . . . . . 2 Parts Attached 164 | 6 . 34 4 2 6 5 11 . 45 17 3 10 8 . 13 Power 23 | 1 . 5 1 . 1 1 . . 7 2 . 3 1 . 1 Engine 13 | 1 . 3 1 . . . . . 3 2 . 2 1 . . Core 10 | . . 2 . . 1 1 . . 4 . . 1 . . 1 Reactor . | . . . . . . . . . . . . . . . . Propulsion 52 | 2 . 15 1 . 1 2 5 . 17 3 2 1 1 . 2 Treads 5 | . . . . . . . . . . . 2 1 1 . 1 Leg 27 | 2 . 9 . . . 1 . . 12 3 . . . . . Wheel 1 | . . . . . . . . . . . . . . . 1 Hover . | . . . . . . . . . . . . . . . . Flight 19 | . . 6 1 . 1 1 5 . 5 . . . . . . Utility 35 | 1 . 4 . . . 1 . . 7 8 . 4 3 . 7 Device 25 | . . 2 . . . 1 . . 5 5 . 3 3 . 6 Storage 3 | 1 . . . . . . . . 1 . . . . . 1 Processor 4 | . . 2 . . . . . . 1 1 . . . . . Hackware 2 | . . . . . . . . . . 2 . . . . . Protection 1 | . . . . . . . . . . . . 1 . . . Artifact . | . . . . . . . . . . . . . . . . Weapon 54 | 2 . 10 2 2 4 1 6 . 14 4 1 2 3 . 3 Energy Gun 9 | . . 4 . . . . 2 . . . . 1 1 . 1 Energy Cannon 3 | . . 2 . . . . . . . . . . 1 . . Ballistic Gun 20 | 2 . 4 2 . 3 . 3 . 5 . . 1 . . . Ballistic Cannon 5 | . . . . . . . . . 4 1 . . . . . Launcher 7 | . . . . . . . . . 4 2 1 . . . . Special Weapon 3 | . . . . 1 . . . . . 1 . . . . 1 Impact Weapon 1 | . . . . . . . . . . . . . 1 . . Slashing Weapon 4 | . . . . . 1 1 1 . 1 . . . . . . Piercing Weapon . | . . . . . . . . . . . . . . . . Special Melee Weapon 2 | . . . . 1 . . . . . . . . . . 1 Unidentified Prototypes 10 | . . 5 . . . . 2 . 2 . . . . . 1 Corrupted Parts 2 | . . . . . . . . . 1 . 1 . . . . System Corruption 5 | . . . . . . . . . 4 . 1 . . . . Parts Lost 52 | . . 3 1 . 1 2 . . 15 4 2 3 3 . 18 Power 9 | . . . 1 . . 1 . . 2 . 1 . 1 . 3 Propulsion 15 | . . 3 . . 1 1 . . 5 1 1 1 . . 2 Utility 14 | . . . . . . . . . 4 2 . 1 1 . 6 Weapon 14 | . . . . . . . . . 4 1 . 1 1 . 7 Highest Loss Streak 13 | . . 1 1 . 1 2 . . 4 3 2 2 2 . 13 To Critical Strikes 4 | . . 1 . . . . . . . . . . . . 3 Average Slot Usage (%) 86 | . 85 96 99 100 99 98 97 100 92 81 67 70 78 88 63 Engine 5 | . 14 2 5 11 10 . . . 5 11 5 6 4 5 3 Core 4 | . . 8 4 . . 8 9 9 6 . . 2 5 5 3 Treads 2 | . . . . . . . . . . . 2 7 10 11 7 Leg 12 | . 28 29 . . . . . . 16 23 11 . . . . Flight 7 | . . 1 33 33 32 26 27 27 8 . . . . . . Device 15 | . . 10 11 11 11 18 18 18 19 15 11 20 19 23 11 Storage 6 | . 14 11 11 11 11 9 9 9 6 5 5 . . . 4 Processor 9 | . . 10 11 11 11 9 9 9 6 8 11 11 11 11 10 Hackware 2 | . . . . . . . . . . 7 5 5 5 5 4 Energy Gun 3 | . . 7 . . . . 12 9 1 . . . 11 11 7 Ballistic Gun 7 | . 28 12 21 3 21 18 5 9 6 . . 4 . . . Ballistic Cannon 1 | . . . . . . . . . 5 1 5 4 . . . Slashing Weapon 2 | . . . . . . 9 7 9 5 4 . . . . . Peak Build Rating 96 | 6 6 23 29 29 32 32 35 34 77 93 92 96 81 81 81 Average Rating 48 | 3 6 14 27 27 29 30 33 34 55 69 82 86 71 81 58 On Entrance 43 | . 6 6 23 29 27 27 32 34 34 77 83 92 71 81 81 Naked Turns . | . . . . . . . . . . . . . . . . Heaviest Build 109 | 13 13 20 22 22 22 21 21 19 100 103 109 98 48 48 86 Greatest Support 145 | 20 20 30 22 22 22 20 21 21 81 75 145 145 97 97 97 Greatest Overweight (x) 15 | . . 1 . . 1 1 1 . 2 1 2 1 1 . 15 Average Overweight (x) . | . . . . . . . . . . . 1 . . . . Largest Inventory Capacity 20 | 8 8 8 8 8 8 8 8 8 10 10 10 10 5 5 20 Average Capacity 8 | 6 8 8 8 8 8 8 8 8 9 10 10 5 5 5 17 Most Carried 11 | 5 2 8 8 8 8 8 8 8 10 10 10 10 5 5 11 Average Carried 7 | 2 2 7 8 7 7 7 8 8 8 8 9 4 3 4 7 Final Capacity 10 | 8 8 8 8 8 8 8 8 8 10 10 10 5 5 5 5 Final Carried 8 | 2 2 8 8 8 8 8 8 8 8 8 8 5 4 5 3 Class Distribution -------------------- 32% | Mutant 17% | Scavenger-Mutant 13% | Hacker-Gunner 10% | Hacker-Mutant 9% | Gunner 8% | Scavenger-Gunner 6% | Sprinter Dominant Class ---------------- Mutant | -10/Materials Scavenger-Mutant | -9/Materials Mutant | -9/Mines Mutant | -9/Exiles Mutant | -8/Mines Mutant | -8/Materials Sprinter | -8/Storage Sprinter | -8/Recycling Mutant | -6/Factory Hacker-Mutant | -5/Factory Hacker-Gunner | -5/Waste Scavenger-Gunner | -5/Factory Scavenger-Mutant | -5/Upper Caves Hacker-Gunner | -5/Upper Caves Hacker-Gunner | -4/Factory Resources | -11 -10 -9 -9 -9 -8 -8 -8 -8 -6 -5 -5 -5 -5 -5 -4 ----------- Run | Yrd Mat Mat Min Exi Min Mat Sto Rec Fac Fac Was Fac Upp Upp Fac Matter Collected 4264 | 260 8 749 67 . 236 335 138 20 1293 55 546 300 100 47 110 Remotely . | . . . . . . . . . . . . . . . . Salvage Created 7169 | . 17 1429 34 . 335 547 159 . 1300 294 1137 1233 301 . 383 Parts 339 | . . 103 3 . 22 33 8 . 59 16 6 66 6 . 17 Haulers Intercepted 7 | . . 4 . . . 2 . . 1 . . . . . . Recyclers Shooed 4 | . . . . . . . 1 . 1 1 . 1 . . . Parts Field Recycled . | . . . . . . . . . . . . . . . . Retrieved Matter . | . . . . . . . . . . . . . . . . Parts Self-Destructed 5 | . . . . . . . . . . . . . 5 . . Prevented . | . . . . . . . . . . . . . . . . Kills | -11 -10 -9 -9 -9 -8 -8 -8 -8 -6 -5 -5 -5 -5 -5 -4 ------- Run | Yrd Mat Mat Min Exi Min Mat Sto Rec Fac Fac Was Fac Upp Upp Fac Combat Hostiles Destroyed 146 | . 1 30 1 . 13 10 5 . 36 6 6 25 6 . 7 Melee 4 | . . . . . . . . . 1 1 . . . . 2 Guns 82 | . 1 28 1 . 13 10 5 . 17 . . 1 6 . . Cannons 53 | . . 2 . . . . . . 16 5 3 24 . . 3 AOE 6 | . . . . . . . . . 2 . 3 . . . 1 Classes Destroyed 16 | . 1 6 . . . . . . 8 . 1 . . . . Worker 5 | . . . . . . . . . 1 . . 3 . . 1 Builder 4 | . . . . . . . . . 1 1 . 2 . . . Hauler 7 | . . 4 . . . 2 . . 1 . . . . . . Operator 5 | . . 1 . . . . . . 1 . . 3 . . . Watcher 9 | . . 5 . . . 1 . . . . . 3 . . . Swarmer 26 | . 1 3 . . 7 . 3 . 5 . . 4 2 . 1 Grunt 65 | . . 16 . . 5 6 1 . 14 2 . 18 2 . 1 Brawler 1 | . . . . . . . . . 1 . . . . . . Duelist 7 | . . 1 1 . 1 . . . 2 1 . . 1 . . Sentry 21 | . . 10 . . . 4 1 . 2 . . 1 1 . 2 Specialist 1 | . . . . . . . . . 1 . . . . . . Hunter 5 | . . . . . . . . . 3 2 . . . . . Programmer 12 | . . . . . . . . . 6 1 . 2 . . 3 Heavy 1 | . . . . . . . . . 1 . . . . . . Behemoth 1 | . . . . . . . . . 1 . . . . . . Compactor 6 | . . . . . . . . . . . 6 . . . . Best Kill Streak 13 | . 1 3 1 . 3 3 5 . 6 6 4 13 3 . 2 Combat Bots Only 8 | . 1 3 1 . 3 3 5 . 5 5 4 8 3 . 2 Max Kills in Single Turn 2 | . 1 1 1 . 2 1 1 . 2 1 2 1 1 . 2 Gunslinging 1 | . . . . . 1 . . . 1 . . . . . . Exploded 1 | . . . . . . . . . 1 . 1 . . . 1 Melee 1 | . . . . . . . . . 1 1 . . . . 1 Uniques/NPCs Destroyed . | . . . . . . . . . . . . . . . . Combat | -11 -10 -9 -9 -9 -8 -8 -8 -8 -6 -5 -5 -5 -5 -5 -4 -------- Run | Yrd Mat Mat Min Exi Min Mat Sto Rec Fac Fac Was Fac Upp Upp Fac Hostile Shots Fired 1072 | . 2 146 2 . 52 55 17 . 299 61 3 65 75 . 295 Missed 377 | . 1 43 1 . 17 21 6 . 124 21 . 18 26 . 99 Damage Taken 9863 | . 5 1108 28 . 277 438 90 . 2646 518 441 893 717 . 2702 Core 2165 | . . 169 23 . 57 111 22 . 355 60 37 77 68 . 1186 Absorbed by Shields . | . . . . . . . . . . . . . . . . Ignored by Resistances 2793 | . 2 326 8 . 89 127 32 . 738 150 126 245 199 . 751 Regen/Repaired (Parts) 274 | . . . . . . . 44 . 201 29 . . . . . Core Remaining (%) 74 | 100 100 . . . 37 . . 75 58 . . . . 75 . Volleys Fired 323 | . 2 113 3 . 22 33 7 . 80 . 7 22 21 . 13 Largest 3 | . 2 2 2 . 2 2 2 . 3 . 1 1 3 . 3 Hottest 294 | . 40 124 56 . 56 56 116 . 131 . 50 28 294 . 242 Shots Fired 741 | . 4 213 6 . 44 66 14 . 201 15 34 75 40 . 29 Gun 536 | . 4 204 6 . 44 66 14 . 118 . . 22 40 . 18 Cannon 192 | . . 9 . . . . . . 78 15 27 52 . . 11 Launcher 13 | . . . . . . . . . 5 . 7 1 . . . Special . | . . . . . . . . . . . . . . . . Kinetic 548 | . 4 142 6 . 44 66 . . 168 15 27 74 2 . . Thermal 176 | . . 71 . . . . 14 . 28 . . . 38 . 25 Explosive 13 | . . . . . . . . . 5 . 7 1 . . . Electromagnetic 4 | . . . . . . . . . . . . . . . 4 Robot Hit Streak 28 | . 1 27 11 . 11 13 7 . 21 13 18 28 18 . 14 Robot Miss Streak 8 | . 2 7 2 . 6 4 2 . 8 3 4 2 4 . 2 Penetration Max 1 | . . . . . 1 . . . . . . 1 . . . Secondary Targets 10 | . . 4 . . 2 . 2 . 2 . . . . . . Max Gunslinging Chain 1 | . . 1 . . 1 . 1 . 1 . . . . . . Autonomous 105 | . . . . . . . . . 10 15 27 53 . . . Shots Hit Robots 629 | . 1 175 4 . 34 53 10 . 173 14 34 67 29 . 35 Core Hits 461 | . 1 122 4 . 44 49 6 . 156 7 16 34 13 . 9 Critical Kills 2 | . . 1 . . . . . . . . . 1 . . . Critical Parts Destroyed 9 | . . . . . 1 1 . . 1 . . 3 . . 3 Critical Strikes 33 | . . 3 . . 1 1 1 . 6 4 3 9 2 . 3 Burn 5 | . . 2 . . . . 1 . . . . . 2 . . Destroy 8 | . . 1 . . 1 1 . . 1 . . 4 . . . Blast 15 | . . . . . . . . . 3 4 3 5 . . . Smash 3 | . . . . . . . . . . . . . . . 3 Sever 2 | . . . . . . . . . 2 . . . . . . Melee Attacks 29 | . . . . . . . 4 . 5 4 . . . . 16 Impact 15 | . . . . . . . . . . . . . . . 15 Slashing 13 | . . . . . . . 4 . 5 4 . . . . . Piercing . | . . . . . . . . . . . . . . . . Sneak Attacks . | . . . . . . . . . . . . . . . . Combat Hostiles . | . . . . . . . . . . . . . . . . Follow-up Attacks . | . . . . . . . . . . . . . . . . Damage Inflicted 21869 | . 10 2586 88 . 728 1126 232 . 5216 882 4684 4409 715 . 1193 Guns 8250 | . 10 2484 88 . 728 1126 193 . 2147 . . 435 711 . 328 Cannons 9641 | . . 102 . . . . . . 2274 797 2204 3944 . . 320 Explosions 3207 | . . . . . . . . . 615 . 2480 . . . 112 Melee 732 | . . . . . . . 39 . 180 85 . . . . 428 Ramming 39 | . . . . . . . . . . . . 30 4 . 5 Kinetic 14815 | . 10 1535 88 . 728 1126 . . 3928 797 2204 4379 20 . . Thermal 3119 | . . 1051 . . . . 193 . 493 . . . 691 . 691 Explosive 3095 | . . . . . . . . . 615 . 2480 . . . . Electromagnetic 69 | . . . . . . . . . . . . . . . 69 Impact 428 | . . . . . . . . . . . . . . . 428 Slashing 304 | . . . . . . . 39 . 180 85 . . . . . Piercing . | . . . . . . . . . . . . . . . . Highest Corruption 20 | . . 2 2 2 2 . . . 8 1 20 20 20 20 11 Average Corruption 8 | . . 2 2 2 2 . . . 3 1 10 20 20 20 6 Corruption Purged . | . . . . . . . . . . . . . . . . Corruption Blocked . | . . . . . . . . . . . . . . . . Effects 157 | . . 12 1 2 4 . . . 26 4 14 37 30 9 18 Message Errors 39 | . . 1 . 1 . . . . 7 . 8 7 10 . 5 Matter Fused 40 | . . 3 1 . 1 . . . 3 2 3 12 7 4 4 Heat Flow Errors 19 | . . 4 . 1 2 . . . 2 1 . 5 2 1 1 Energy Discharges 16 | . . 1 . . 1 . . . 3 1 . 5 2 1 2 Parts Rejected 4 | . . . . . . . . . 1 . 1 . 2 . . Parts Fused 2 | . . 1 . . . . . . . . . 1 . . . Data Loss (minor) 17 | . . 1 . . . . . . 5 . 1 4 3 1 2 Data Loss (major) 5 | . . . . . . . . . . . 1 1 . 1 2 Misfires 4 | . . . . . . . . . 3 . . 1 . . . Alerts 4 | . . . . . . . . . 2 . . . . 1 1 Misdirections 1 | . . . . . . . . . . . . 1 . . . Weapon Failures 6 | . . 1 . . . . . . . . . . 4 . 1 Overload Shots 4 | . . . . . . . . . . . . . 3 . 1 Overflow Damage 1063 | . . 10 . . . . 1 . 108 44 . 684 . . 216 Projectiles 819 | . . 10 . . . . . . 107 43 . 659 . . . Explosions 67 | . . . . . . . . . . . . 25 . . 42 Melee 177 | . . . . . . . 1 . 1 1 . . . . 174 Knockbacks 51 | . . . . . . . . . 33 6 . 10 . . 2 Impact 2 | . . . . . . . . . . . . . . . 2 Kinetic 45 | . . . . . . . . . 33 4 . 8 . . . Secondary 4 | . . . . . . . . . . 2 . 2 . . . Self-Inflicted Damage 618 | . . . . . . . . . 16 . 365 237 . . . Shots 30 | . . . . . . . . . 1 . 19 10 . . . Rammed 10 | . . . . . . . . . . . . 3 1 . 6 Targets Rammed 11 | . . . . . . . . . . . . 4 1 . 6 Kicked . | . . . . . . . . . . . . . . . . Crushed 1 | . . . . . . . . . . . . 1 . . . Highest Temperature 434 | . . 304 9 173 209 62 372 . 184 97 . 239 434 211 163 Average Temperature 77 | . . 77 6 80 62 20 183 . 37 70 . 109 155 128 46 Received Heat Transfer 2586 | . . 549 . . 117 342 9 . 783 45 . 270 270 . 201 Effects 9 | . . 5 . . . . 4 . . . . . . . . Shutdowns 1 | . . . . . . . 1 . . . . . . . . Interference 8 | . . 5 . . . . 3 . . . . . . . . Siege Activations . | . . . . . . . . . . . . . . . . Robots Corrupted 1 | . . . . . . . . . . . . . . . 1 Combat Hostiles 1 | . . . . . . . . . . . . . . . 1 Parts Fried 3 | . . . . . . . . . . . . . . . 3 Impact Corruptions 6 | . . . . . . . . . . . . 1 . . 5 Robots Melted . | . . . . . . . . . . . . . . . . Combat Hostiles . | . . . . . . . . . . . . . . . . Parts Melted 10 | . . 2 . . 1 . . . . . . . 5 . 2 Heat Transferred 5232 | . . 1646 . . . . 444 . 925 . . . 1297 . 920 Parts Sabotaged . | . . . . . . . . . . . . . . . . Parts Stolen . | . . . . . . . . . . . . . . . . Parts Stripped . | . . . . . . . . . . . . . . . . Power Chain Reactions 1 | . . . . . . . . . . . . . . . 1 Alert | -11 -10 -9 -9 -9 -8 -8 -8 -8 -6 -5 -5 -5 -5 -5 -4 ------- Run | Yrd Mat Mat Min Exi Min Mat Sto Rec Fac Fac Was Fac Upp Upp Fac Peak Influence 637 | . 58 350 130 . 497 483 340 112 289 226 198 637 . . 196 Initial 173 | . . 20 108 . . 163 173 112 39 121 65 122 . . 99 Average 165 | . 18 209 120 . 323 329 241 112 101 116 169 272 . . 111 Maximum Alert Level 2 | . . 1 . . 2 2 1 . 1 1 . 2 . . . Low Security (%) 69 | 100 100 41 100 . 7 10 55 100 91 89 100 37 . . 100 Level 1 25 | . . 58 . . 55 54 44 . 8 10 . 46 . . . Level 2 4 | . . . . . 36 35 . . . . . 15 . . . Level 3 . | . . . . . . . . . . . . . . . . Level 4 . | . . . . . . . . . . . . . . . . Level 5 . | . . . . . . . . . . . . . . . . High Security . | . . . . . . . . . . . . . . . . Max Security . | . . . . . . . . . . . . . . . . Squads Dispatched 34 | . . 1 1 . . 1 2 . 16 3 . 8 . . 2 Investigation 17 | . . 1 1 . . . 1 . 5 3 . 5 . . 1 Extermination 7 | . . . . . . . . . 5 . . 1 . . 1 Reinforcement 9 | . . . . . . 1 1 . 6 . . 1 . . . Assault . | . . . . . . . . . . . . . . . . Garrison 1 | . . . . . . . . . . . . 1 . . . Intercept . | . . . . . . . . . . . . . . . . Searches Triggered . | . . . . . . . . . . . . . . . . Construction Impeded 1 | . . . . . . 1 . . . . . . . . . Haulers Reinforced 2 | . . . . . . . . . 1 . . 1 . . . Active Scanning Responses . | . . . . . . . . . . . . . . . . Cargo Convoy Interrupts 1 | . . . . . . . . . 1 . . . . . . Stealth | -11 -10 -9 -9 -9 -8 -8 -8 -8 -6 -5 -5 -5 -5 -5 -4 --------- Run | Yrd Mat Mat Min Exi Min Mat Sto Rec Fac Fac Was Fac Upp Upp Fac Distress Signals 13 | . . 4 . . . 1 . 1 4 1 . 2 . . . Communications Jammed . | . . . . . . . . . . . . . . . . Distress Signals . | . . . . . . . . . . . . . . . . Times Spotted 202 | . 2 43 1 . 21 14 7 . 48 9 5 33 6 . 13 Peak Tracking Total 7 | . 3 5 1 . 6 4 7 . 5 6 3 7 3 . 5 Tactical Retreats 11 | . 1 3 . . . . . . 2 3 . 2 . . . Traps | -11 -10 -9 -9 -9 -8 -8 -8 -8 -6 -5 -5 -5 -5 -5 -4 ------- Run | Yrd Mat Mat Min Exi Min Mat Sto Rec Fac Fac Was Fac Upp Upp Fac Traps Triggered 7 | . . 1 . . . . 2 . 2 2 . . . . . Indirectly . | . . . . . . . . . . . . . . . . Trap Hack Attempts . | . . . . . . . . . . . . . . . . Triggered . | . . . . . . . . . . . . . . . . Disarmed . | . . . . . . . . . . . . . . . . Reprogrammed . | . . . . . . . . . . . . . . . . Reused . | . . . . . . . . . . . . . . . . Traps Extracted . | . . . . . . . . . . . . . . . . Installed . | . . . . . . . . . . . . . . . . Triggered 1 | . . . . . . . . . 1 . . . . . . Machines | -11 -10 -9 -9 -9 -8 -8 -8 -8 -6 -5 -5 -5 -5 -5 -4 ---------- Run | Yrd Mat Mat Min Exi Min Mat Sto Rec Fac Fac Was Fac Upp Upp Fac Machines Disabled 6 | . . . . . 1 . 2 . . . . 1 . . 2 Max in Single Turn 2 | . . . . . 1 . 1 . . . . 1 . . 2 Machines Repaired . | . . . . . . . . . . . . . . . . Machines Dismantled . | . . . . . . . . . . . . . . . . Machines Sabotaged . | . . . . . . . . . . . . . . . . Overloaded Fab Kills . | . . . . . . . . . . . . . . . . Hacking | -11 -10 -9 -9 -9 -8 -8 -8 -8 -6 -5 -5 -5 -5 -5 -4 --------- Run | Yrd Mat Mat Min Exi Min Mat Sto Rec Fac Fac Was Fac Upp Upp Fac Machines Accessed 40 | . 3 6 1 2 . 1 2 . 12 4 . 6 . . 3 Terminals 25 | . 3 5 . . . 1 1 . 8 2 . 4 . . 1 Fabricators 3 | . . . . . . . . . 1 . . 2 . . . Repair Stations 4 | . . . . . . . 1 . 1 1 . . . . 1 Recycling Units . | . . . . . . . . . . . . . . . . Scanalyzers 4 | . . 1 . . . . . . 2 1 . . . . . Garrison Access 1 | . . . . . . . . . . . . . . . 1 Total Hacks 99 | . 7 12 1 5 . 1 6 . 29 12 . 21 . . 5 Successful 58 | . 4 6 1 5 . 1 5 . 17 7 . 9 . . 3 Failed 41 | . 3 6 . . . . 1 . 12 5 . 12 . . 2 Catastrophic 4 | . . . . . . . . . 2 . . 2 . . . Database Lockouts . | . . . . . . . . . . . . . . . . Manual 4 | . . 2 . 1 . . 1 . . . . . . . . Terminals 63 | . 7 10 . . . 1 3 . 18 8 . 15 . . 1 Fabricators 7 | . . . . . . . . . 1 . . 6 . . . Repair Stations 9 | . . . . . . . 3 . 2 2 . . . . 2 Recycling Units . | . . . . . . . . . . . . . . . . Scanalyzers 12 | . . 2 . . . . . . 8 2 . . . . . Garrison Access 2 | . . . . . . . . . . . . . . . 2 Terminal Hacks 35 | . 4 4 1 5 . 1 2 . 8 3 . 6 . . 1 Record 14 | . . . . 4 . . . . 2 3 . 4 . . 1 Part Schematic 1 | . . . . . . . . . 1 . . . . . . Robot Analysis 4 | . 1 . . . . . . . 1 . . 2 . . . Prototype ID Bank 2 | . . 1 . . . . 1 . . . . . . . . Open Door 1 | . . . 1 . . . . . . . . . . . . Open DSF 1 | . . . . . . . . . 1 . . . . . . Branch Access Points 2 | . 1 1 . . . . . . . . . . . . . Locate Traps 1 | . . . . . . . 1 . . . . . . . . Hauler Manifests 3 | . 1 1 . . . 1 . . . . . . . . . Registered Components 1 | . . . . . . . . . 1 . . . . . . Zone Layout 4 | . 1 1 . . . . . . 2 . . . . . . Derelict Proto ID Bank 1 | . . . . 1 . . . . . . . . . . . Fabricator Hacks 4 | . . . . . . . . . 1 . . 3 . . . Load Schematic 2 | . . . . . . . . . . . . 2 . . . Build 2 | . . . . . . . . . 1 . . 1 . . . Repair Station Hacks 9 | . . . . . . . 3 . 2 2 . . . . 2 Scan Component 5 | . . . . . . . 2 . 1 1 . . . . 1 Repair 4 | . . . . . . . 1 . 1 1 . . . . 1 Recycling Unit Hacks . | . . . . . . . . . . . . . . . . Scanalyzer 10 | . . 2 . . . . . . 6 2 . . . . . Insert Component 5 | . . 1 . . . . . . 3 1 . . . . . Analyze 5 | . . 1 . . . . . . 3 1 . . . . . Garrison Access Hacks . | . . . . . . . . . . . . . . . . Unauthorized Hacks . | . . . . . . . . . . . . . . . . Terminals . | . . . . . . . . . . . . . . . . Fabricators . | . . . . . . . . . . . . . . . . Repair Stations . | . . . . . . . . . . . . . . . . Recycling Units . | . . . . . . . . . . . . . . . . Scanalyzers . | . . . . . . . . . . . . . . . . Garrison Access . | . . . . . . . . . . . . . . . . Data Cores Recovered 4 | . . 1 . . . . . . . . . 3 . . . Used . | . . . . . . . . . . . . . . . . Hacking Detections 30 | . 3 3 . . . . 2 . 9 4 . 6 . . 3 Full Trace Events 15 | . 1 1 . . . . 1 . 4 2 . 5 . . 1 Feedback Events 1 | . . . . . . . . . . 1 . . . . . Corruption 1 | . . . . . . . . . . 1 . . . . . Feedback Blocked . | . . . . . . . . . . . . . . . . Robot Schematics Acquired . | . . . . . . . . . . . . . . . . Robots Built 3 | . . . . . . . . . 3 . . . . . . Authchips . | . . . . . . . . . . . . . . . . Time 134 | . . . . . . . . . 134 . . . . . . Total Robot Build Rating 12 | . . . . . . . . . 12 . . . . . . Part Schematics Acquired 6 | . . 1 . . . . . . 4 1 . . . . . Parts Built . | . . . . . . . . . . . . . . . . Authchips . | . . . . . . . . . . . . . . . . Time 152 | . . . . . . . . . . . . 152 . . . Total Part Build Rating . | . . . . . . . . . . . . . . . . Parts Repaired 3 | . . . . . . . 1 . 1 1 . . . . . Time 150 | . . . . . . . 38 . 38 18 . . . . 56 Parts Recycled . | . . . . . . . . . . . . . . . . Recycled Matter . | . . . . . . . . . . . . . . . . Retrieved Matter . | . . . . . . . . . . . . . . . . Retrieved Components . | . . . . . . . . . . . . . . . . Parts Scanalyzed 5 | . . 1 . . . . . . 3 1 . . . . . Part Schematics Acquired 5 | . . 1 . . . . . . 3 1 . . . . . Parts Damaged . | . . . . . . . . . . . . . . . . Bothacking | -11 -10 -9 -9 -9 -8 -8 -8 -8 -6 -5 -5 -5 -5 -5 -4 ------------ Run | Yrd Mat Mat Min Exi Min Mat Sto Rec Fac Fac Was Fac Upp Upp Fac Used RIF Installer . | . . . . . . . . . . . . . . . . Robots Hacked . | . . . . . . . . . . . . . . . . Non-combat . | . . . . . . . . . . . . . . . . Combat . | . . . . . . . . . . . . . . . . Robot Hacks Applied . | . . . . . . . . . . . . . . . . Relay Couplers Released . | . . . . . . . . . . . . . . . . Fabnet Peak Effective % . | . . . . . . . . . . . . . . . . Robots Rewired . | . . . . . . . . . . . . . . . . Allies Hacked . | . . . . . . . . . . . . . . . . Hacks Repelled . | . . . . . . . . . . . . . . . . Allies | -11 -10 -9 -9 -9 -8 -8 -8 -8 -6 -5 -5 -5 -5 -5 -4 -------- Run | Yrd Mat Mat Min Exi Min Mat Sto Rec Fac Fac Was Fac Upp Upp Fac Total Allies 8 | . . . 5 . . . . . 3 . . . . . . Largest Group 5 | . . . 5 5 3 2 . . 3 . . . . . . Highest-Rated Group 90 | . . . 77 77 40 32 . . 90 . . . . . . Highest-Rated Ally 31 | . . . 31 31 16 16 . . 30 . . . . . . Total Orders . | . . . . . . . . . . . . . . . . Ally Attacks 52 | . . . . . 29 10 . . 13 . . . . . . Total Damage 830 | . . . . . 274 138 . . 418 . . . . . . Kills 13 | . . . . . 8 2 . . 3 . . . . . . Allies Corrupted . | . . . . . . . . . . . . . . . . Allies Melted . | . . . . . . . . . . . . . . . . Intel | -11 -10 -9 -9 -9 -8 -8 -8 -8 -6 -5 -5 -5 -5 -5 -4 ------- Run | Yrd Mat Mat Min Exi Min Mat Sto Rec Fac Fac Was Fac Upp Upp Fac Robot Analysis Total 4 | . 1 . . . . . . . 1 . . 2 . . . Derelict Logs Recovered 3 | . . . 2 . . . . . . . . . 1 . . Drone Launches . | . . . . . . . . . . . . . . . . Drone Recoveries . | . . . . . . . . . . . . . . . . Exploration | -11 -10 -9 -9 -9 -8 -8 -8 -8 -6 -5 -5 -5 -5 -5 -4 ------------- Run | Yrd Mat Mat Min Exi Min Mat Sto Rec Fac Fac Was Fac Upp Upp Fac Turns Passed 9679 | 53 209 1856 291 254 387 359 181 205 2311 761 360 763 589 226 874 Spaces Moved 6770 | 36 167 1243 459 278 349 241 220 169 1958 416 142 301 306 137 348 Core 17 | 9 . . . . . . . . . . . . . . 8 Treads 1114 | . . . . . . . . . . . 30 301 306 137 340 Legs 2929 | 27 167 1129 . . . 12 . . 1066 416 112 . . . . Wheels . | . . . . . . . . . . . . . . . . Hover . | . . . . . . . . . . . . . . . . Flight 2710 | . . 114 459 278 349 229 220 169 892 . . . . . . Fastest Speed 26 | 50 120 34 34 34 34 32 29 29 26 112 170 165 165 165 150 Average Speed 106 | 102 120 112 34 34 69 100 38 29 89 124 231 209 165 165 211 Slowest Speed 800 | 120 120 120 34 34 107 112 105 29 265 190 270 240 250 165 800 Overloaded Moves . | . . . . . . . . . . . . . . . . Propulsion Burnouts . | . . . . . . . . . . . . . . . . Robots Hopped 1 | . . . . . . . 1 . . . . . . . . Cave-ins Triggered . | . . . . . . . . . . . . . . . . Exploration Rate (%) 43 | 3 34 94 84 65 67 36 28 44 52 10 91 11 52 18 8 Regions Visited 15 Branch Regions 7 Pre-discovered Areas 1 | . . . . 1 . . . . . . . . . . . Known Exits Taken 1 | . . 1 . . . . . . . . . . . . . Unknown Exits Taken 12 | 1 1 . 1 1 1 1 1 1 1 . . 1 1 1 . Scrap Searched 4 | . . . 1 . . . . . . . . . 2 1 . Spaces Dug . | . . . . . . . . . . . . . . . . Terrain Destroyed 269 | . . . . . . . . . 49 4 166 7 . . 43 Melee . | . . . . . . . . . . . . . . . . Projectile 14 | . . . . . . . . . . 4 1 7 . . 2 AOE 255 | . . . . . . . . . 49 . 165 . . . 41 Terrain Rammed . | . . . . . . . . . . . . . . . . Walls Destroyed . | . . . . . . . . . . . . . . . . Machines Disabled . | . . . . . . . . . . . . . . . . Actions | -11 -10 -9 -9 -9 -8 -8 -8 -8 -6 -5 -5 -5 -5 -5 -4 --------- Run | Yrd Mat Mat Min Exi Min Mat Sto Rec Fac Fac Was Fac Upp Upp Fac Total 8579 | 52 172 1503 588 437 449 291 294 324 2352 654 157 409 345 137 415 Wait 1104 | 3 4 59 118 154 67 10 45 156 225 198 . 59 . . 6 Move 6754 | 35 166 1242 458 277 348 240 217 168 1957 416 141 300 305 136 348 Hop 1 | . . . . . . . 1 . . . . . . . . Pick Up 95 | 8 . 27 1 1 2 2 . . 16 9 3 7 8 1 10 Fast Attach 49 | . . 6 4 . 3 3 7 . 19 4 . 2 . . 1 Attach 69 | 6 . 11 . . . 2 . . 16 8 2 5 7 . 12 Detach 8 | . . . . . . . . . 4 4 . . . . . Swap 47 | . . 17 . 2 3 . 4 . 11 5 1 3 1 . . Drop 90 | . . 28 4 3 4 1 9 . 19 6 3 7 2 . 4 Fire 323 | . 2 113 3 . 22 33 7 . 80 . 7 22 21 . 13 Melee 29 | . . . . . . . 4 . 5 4 . . . . 16 Ram 3 | . . . . . . . . . . . . . . . 3 Kick . | . . . . . . . . . . . . . . . . Crush 7 | . . . . . . . . . . . . 4 1 . 2 Escape Stasis . | . . . . . . . . . . . . . . . . Rewire . | . . . . . . . . . . . . . . . . Trap . | . . . . . . . . . . . . . . . . Miscellaneous . | . . . . . . . . . . . . . . . . Route ------- -11/Scrapyard -10/Materials (discovered 2 exits: *Mat / *Min) -9/Materials (discovered 4 exits: *Mat x3 / *Min) -9/Mines (discovered 4 exits: *Mat x2 / *Exi / [*Zio]) -9/Exiles (discovered 2 exits: [*Min x2]) -8/Mines -8/Materials -8/Storage -8/Recycling -6/Factory -5/Factory -5/Waste -5/Factory -5/Upper Caves -5/Upper Caves -4/Factory History --------- Turn | Location | Event 5 | -11/Scrapyard | Discovered new exit (range 16) 54 | -11/Scrapyard | Entered Materials 82 | -10/Materials | Discovered new exit (range 14) 164 | -10/Materials | Identified exit to Mines 211 | -10/Materials | Discovered new exit (range 13) 263 | -10/Materials | Entered another Materials area 263 | -9/Materials | Evolved 2 slots: Propulsion x1, Utility x1 302 | -9/Materials | Build established: Mutant 508 | -9/Materials | Discovered new exit (range 3) 776 | -9/Materials | Discovered new exit (range 16) 796 | -9/Materials | Identified exit to Mines 1020 | -9/Materials | Build established: Scavenger-Mutant 2017 | -9/Materials | Discovered new exit (range 13) 2119 | -9/Materials | Entered Mines 2133 | -9/Mines | Met a Derelict shopkeep closing up shop 2158 | -9/Mines | Assisted by bots powering up and referring to "LRC-V3" 2234 | -9/Mines | A Derelict revealed a hidden shortcut to a safe place 2253 | -9/Mines | Discovered new exit (range 15) 2281 | -9/Mines | Learned Materials emergency access door positions 2285 | -9/Mines | Learned Materials terminal intel 2286 | -9/Mines | Discovered new exit (range 14) 2334 | -9/Mines | Build established: Mutant 2342 | -9/Mines | Deemed a non-threat by the Exiles lab entrance 2342 | -9/Mines | Discovered new exit (range 5) 2410 | -9/Mines | Entered Exiles 2410 | -9/Exiles | Accompanied by 5 allies 2416 | -9/Exiles | Discovered new exit (range 15) 2420 | -9/Exiles | Met 8R-AWN 2440 | -9/Exiles | Led the pair of lost Derelicts to a safe place 2455 | -9/Exiles | Met EX-HEX 2468 | -9/Exiles | Met EX-BIN 2473 | -9/Exiles | Aligned with FarCom system 2473 | -9/Exiles | Given EX-Vault access code 2481 | -9/Exiles | Opened EX-Vault 2484 | -9/Exiles | Found AWS/Autocannon 2492 | -9/Exiles | Warned to stay clear of 0b10 Research branches 2498 | -9/Exiles | Exiles lab attacked by MAIN.C 2521 | -9/Exiles | Learned location of Zion (-7) 2619 | -9/Exiles | Discovered new exit (range 14) 2664 | -9/Exiles | Left Exiles lab with AWS/Autocannon 2664 | -9/Exiles | Entered Mines 2664 | -8/Mines | Accompanied by 3 allies 2680 | -8/Mines | Core integrity fell below 50% 3032 | -8/Mines | Discovered new exit (range 3) 3051 | -8/Mines | Entered Materials 3051 | -8/Materials | Accompanied by 2 allies 3051 | -8/Materials | Evolved 2 slots: Utility x1, Weapon x1 3053 | -8/Materials | Loaded intel: 11 terminal locations 3270 | -8/Materials | Discovered new exit (range 14) 3410 | -8/Materials | Entered Storage 3497 | -8/Storage | Repaired Katana 3590 | -8/Storage | Used back door to open Recycling access 3590 | -8/Storage | Discovered new exit (range 5) 3591 | -8/Storage | Entered Recycling 3592 | -8/Recycling | Joined Warlord attack on 0b10 via Recycling 3649 | -8/Recycling | Discovered new exit (range 11) 3796 | -8/Recycling | Entered Factory 3796 | -6/Factory | Evolved 4 slots: Power x1, Propulsion x1, Utility x1, Weapon x1 3801 | -6/Factory | 1 allies followed out of Recycling 3801 | -6/Factory | Identified exit to DSF 4318 | -6/Factory | Repaired Hpw. Shotgun 4526 | -6/Factory | Lost 4 parts (2n2w) 4643 | -6/Factory | Fabricated L-41 Fighter? 4833 | -6/Factory | Spotted B-75 Beast 4874 | -6/Factory | Destroyed B-75 Beast 4897 | -6/Factory | Lost 3 allies 5239 | -6/Factory | Found Prototype Launcher 5239 | -6/Factory | Identified Scatter Rocket Array 5246 | -6/Factory | Found Scatter Rocket Array 5330 | -6/Factory | Build established: Gunner 5527 | -6/Factory | Cargo convoy interrupted 6007 | -6/Factory | Discovered new exit (range 11) 6107 | -6/Factory | Entered another Factory area 6107 | -5/Factory | Evolved 2 slots: Utility x2 6409 | -5/Factory | Build established: Hacker-Mutant 6755 | -5/Factory | Lost 3 parts (1n1u1w) 6844 | -5/Factory | Repaired Recoil Nullifier 6868 | -5/Factory | Sucked down chute 6868 | -5/Factory | Entered Waste 6883 | -5/Waste | EMP discharged 6902 | -5/Waste | Spotted C-40 Crusher 6913 | -5/Waste | Crushed by Compactor (1 part destroyed) 6916 | -5/Waste | Crushed by Compactor (1 part destroyed) 6920 | -5/Waste | Spotted C-40 Crusher 6925 | -5/Waste | Destroyed C-40 Crusher 6927 | -5/Waste | Spotted C-40 Crusher 6934 | -5/Waste | Spotted C-40 Crusher 6934 | -5/Waste | Destroyed C-40 Crusher 6934 | -5/Waste | Destroyed C-40 Crusher 6942 | -5/Waste | Destroyed C-40 Crusher 6966 | -5/Waste | Spotted C-40 Crusher 6975 | -5/Waste | Destroyed C-40 Crusher 6983 | -5/Waste | EMP discharged 7083 | -5/Waste | EMP discharged 7083 | -5/Waste | System corruption reached 10% 7123 | -5/Waste | Spotted C-40 Crusher 7124 | -5/Waste | Destroyed C-40 Crusher 7183 | -5/Waste | EMP discharged 7208 | -5/Waste | Discovered new exit (range 11) 7221 | -5/Waste | Build established: Hacker-Gunner 7228 | -5/Waste | Entered Factory 7521 | -5/Factory | Garrison activated, responded to threat 7631 | -5/Factory | Build established: Scavenger-Gunner 7845 | -5/Factory | Destroyed 8 combat bots 7920 | -5/Factory | AWS/Autocannon suddenly broke down 7936 | -5/Factory | Destroyed 7 combat bots 7966 | -5/Factory | Discovered new exit (range 10) 7991 | -5/Factory | Entered Upper Caves 8040 | -5/Upper Caves | Attracted the attention of an 0b10 checkpoint 8518 | -5/Upper Caves | Discovered new exit (range 10) 8555 | -5/Upper Caves | Learned Factory terminal intel 8580 | -5/Upper Caves | Entered another Upper Caves area 8726 | -5/Upper Caves | Build established: Hacker-Gunner 8784 | -5/Upper Caves | Discovered new exit (range 13) 8806 | -5/Upper Caves | Entered Factory 8806 | -4/Factory | Evolved 2 slots: Weapon x2 8807 | -4/Factory | Loaded intel: 28 terminal locations 9465 | -4/Factory | Lost 3 parts (1p1n1w) 9518 | -4/Factory | Found Quantum Capacitor 9579 | -4/Factory | System corruption reached 10% 9634 | -4/Factory | Core integrity fell below 50% 9662 | -4/Factory | Core integrity fell below 20% 9680 | -4/Factory | Core destroyed Last Messages --------------- Penetrated by Slug. K-01 Serf destroyed. Acquired 18 matter. Penetrated by Slug. Slug penetrates Wall. R-10 Processor collects Terrain Scan Processor. Dropped Hcp. Storage Unit. Acquired 17 matter. Imp. Plasma Cutter destroyed. R-10 Processor collects Hcp. Storage Unit. Penetrated by Slug. Slug penetrates Construction Platform. Penetrated by Slug. Critical hit (Destroy). Point Defense System destroyed. Slug penetrates Wall. Acquired Wheel. R-10 Processor collects Sml. Matter Pod. Slammed into H-77 Assassin. Destabilizing: Core damaged (-46). Map ----- +----------------------------------------------------+ | ?????????????????????????????????????????????????? | | ?????????????????????????????????????????????????? | | ?????????????????????????????????????????????????? | | ?????????????????????????????????????????????????? | | ???????????????????????????????????????????####### | | ???????????????????????????????????????????####### | | ???????????????????????????????????????????## | | ???????????????????????????????????????????##""" | | ????????????????????????? ?????????????##""" | | ??????????????????????? # #????????????##""" | | ??????????????????????? # T???########?## | | ??????????????????????? # ???########### | | ??????????????????????? # #???## #########+ | | ??????????????????????? # #???## + | | ??????????????????????? # #???## ######### | | ??????????????????????? # #???## ######### | | ??????????????????????? # #???## ##???## % | | ??????????????????????? + #???## ##???## | | ??????????????????????? # %#???## ### | | ??????????????###########R #???## ### ### | | ??????????????# ## ##??## ### ### | | ??????????????# """" # h u #######+#### ###### | | ??????????????# """" # ##### ###### | | ??????????????# """" #% % ##?### | | ??????????????# """"%+%hR= ##?## | | ??????????????# """" #%@ # ?## | | ??????????????# """"%# ##### ##?## | | ??????????????# """" # ### ### + | | ??????????????# ##;############ ##### | | ??????????????########## # # % "#### | | ???????????????????????? # """""" # "#### | | ???????????????????????? # """""" # "#### | | ????????????????????????## """""" # ###### | | ????????????????????????## """""" # | | ????????????????????????## # ##"##### | | ????????????????????????##! # # ""G"" | | ????????????????????############+##### + "" "" | | ????????????????????########## ### # | | ????????????????????## # ### #! | | ????????????????????## ! + # | | ????????????????????## # ### # """ | | ????????????????????#######+## ### #! """ | | ????????????????????""" ## #### ##### # """ | | ???????????????????????? # #####+##+# | | ???????????????????????? + ### #####+## | | ???????????????????????? # ### """ ## | | ???????????????????????? # ### """ ## | | ???????????????????????### ### """ ## | | ???????????????????????### ### ## | | ???????????????????????## ### """ ## | +----------------------------------------------------+ Best States ------------- Heat Dissipation 105 Energy Generation 29 Energy Capacity 490 Matter Stores 300 Matter Capacity 300 Sight Range 16 Terrain Scan Density 10 Additional Mass Support 6 Armor Coverage 225 Resistance: KI 20 Resistance: TH 20 Resistance: EX 20 Resistance: EM 20 Resistance: I 20 Resistance: S 20 Resistance: P 20 Point Defense Rating 80 Phase Shifting 5 Evasion (%) 64 Targeting Accuracy 8 Target Analysis 6 Recoil Reduction 9 Offensive Hacking 32 Item Schematics ----------------- Structural Scanner | -9/Materials | Scanalyzed Carbon-fiber Leg | -6/Factory | Scanalyzed Imp. VSS Leg | -6/Factory | Scanalyzed Imp. Hacking Suite | -6/Factory | Scanalyzed Hpw. Shock Rifle | -6/Factory | Hacked Scatter Rocket Array | -5/Factory | Scanalyzed Robot Schematics ------------------ None Fabricated ------------ L-41 Fighter | x3 | -6/Factory | Preloaded Alien Tech Used ----------------- None Achievements -------------- None Challenges ------------ None Game ------ Seed SigixTerrabombBoomstick Manual? 0 Play Time 01:24:34 Cumulative 54.7 hours Start 2024.09.01 @ 20:39:31 End 2024.09.02 @ 11:32:09 Sessions 1 Manual Loads 0 Difficulty Adventurer Special Mode None Game No. 68 Rogue 13 Adventurer 55 Explorer 0 Win Type - Total 0 Types 0/0/0/0/0/0/0/0/0 Lore% 43 Gallery% 48 Achievement% 41 Wizard Run 0 Options --------- Layout 1 ASCII 0 Keyboard 0 Movement Mouse Keybinds 0 Fullscreen 1 Font 24/Smallcaps Map View 50x35 Zoom Use 0% Tactical HUD 0 Map Filters NONE Filters NONE Steam 1 RUN: 9fe62c8f-328b-438e-ad90-5852803ba628